bitfinex-derivatives/quotes_BTCF0:USTF0_20250910
["timestamp","ask_amount","ask_price","bid_price","bid_amount"]
[1757487720776,0.13077912,111890.0,111880.0,0.03572]
[1757487720982,0.13077912,111890.0,111880.0,0.02179]
[1757487721182,0.13077912,111890.0,111880.0,0.11684912]
[1757487721991,0.13077912,111890.0,111880.0,0.02179]
[1757487723689,0.13177912,111890.0,111880.0,0.02179]
[1757487724591,0.13377912,111890.0,111880.0,0.09239439]
[1757487726391,0.18115177,111890.0,111880.0,0.23482616]
[1757487726893,0.03872,111890.0,111880.0,0.23482616]
[1757487727091,0.18115177,111890.0,111880.0,0.24384578]
[1757487731193,0.18115177,111890.0,111880.0,0.25684578]
[1757487732492,0.16851177,111890.0,111880.0,0.39927755]
[1757487734393,0.18227177,111890.0,111880.0,0.39927755]
[1757487734897,0.18227177,111890.0,111880.0,0.25684578]
[1757487735895,0.18227177,111890.0,111880.0,0.24384578]
[1757487737097,0.16851177,111890.0,111880.0,0.39927755]
[1757487737996,0.03984,111890.0,111880.0,0.25684578]
[1757487738205,0.18227177,111890.0,111880.0,0.25684578]
[1757487739098,0.18227177,111890.0,111880.0,0.24384578]
[1757487740896,0.18227177,111890.0,111880.0,0.25684578]
[1757487741091,0.16851177,111890.0,111880.0,0.39927755]
[1757487742701,0.16751177,111890.0,111880.0,0.39927755]
[1757487743505,0.02508,111890.0,111880.0,0.39927755]
[1757487743804,0.16751177,111890.0,111880.0,0.39927755]
[1757487746407,0.18984915,111890.0,111880.0,0.39927755]
[1757487746605,0.04741738,111890.0,111880.0,0.39927755]
[1757487747104,0.02508,111890.0,111880.0,0.39927755]
[1757487755511,0.02508,111890.0,111880.0,0.11441401]
[1757487755716,0.02508,111890.0,111880.0,0.39927755]
[1757487771725,0.02508,111890.0,111880.0,1.21071755]
[1757487772726,0.02508,111890.0,111880.0,0.39927755]
[1757487772927,0.16751177,111890.0,111880.0,1.21067755]
[1757487774222,0.32320354,111890.0,111880.0,0.10141401]
[1757487774424,0.01326,111870.0,111860.0,0.01789332]
[1757487774629,0.01326,111870.0,111860.0,0.03205404]
[1757487774630,0.17749177,111870.0,111860.0,0.03205404]
[1757487774831,0.42749177,111870.0,111860.0,0.03205404]
[1757487775724,0.42749177,111870.0,111860.0,0.10501637]
[1757487775915,0.42749177,111870.0,111860.0,0.10701637]
[1757487776320,0.42749177,111870.0,111860.0,0.24944814]
[1757487777228,0.42749177,111870.0,111860.0,0.25044814]
[1757487780536,0.0218,111870.0,111860.0,0.40665991]
[1757487781133,0.16423177,111870.0,111860.0,0.40665991]
[1757487782238,0.0218,111870.0,111860.0,0.40665991]
[1757487782534,0.16423177,111870.0,111860.0,0.40665991]
[1757487783033,0.17749177,111870.0,111860.0,0.12179637]
[1757487783238,0.17749177,111870.0,111860.0,0.10801637]
[1757487783441,0.42749177,111870.0,111860.0,0.07596233]
[1757487784338,0.42749177,111870.0,111860.0,0.09895233]
[1757487786334,0.38006156,111870.0,111860.0,0.10770703]
[1757487788144,0.28506,111870.0,111860.0,0.21648859]
[1757487788640,0.0218,111870.0,111860.0,0.21648859]
[1757487788831,0.0218,111870.0,111860.0,0.31149015]
[1757487789031,0.0218,111870.0,111860.0,0.56149015]
[1757487789235,0.0218,111870.0,111860.0,0.46648859]
[1757487792338,0.0218,111870.0,111860.0,0.37148703]
[1757487792539,0.0218,111870.0,111860.0,0.46648859]
[1757487794440,0.0218,111870.0,111860.0,0.56149015]
[1757487794951,0.02315,111880.0,111870.0,0.03592]
[1757487795149,0.02305,111880.0,111870.0,0.13092156]
[1757487795449,0.02305,111880.0,111870.0,0.94248156]
[1757487800454,0.02325,111890.0,111880.0,0.03592]
[1757487800753,0.02305,111890.0,111880.0,0.13092156]
[1757487801154,0.02305,111890.0,111880.0,0.22592312]
[1757487801746,0.02305,111890.0,111880.0,0.13092156]
[1757487802054,0.02405,111890.0,111880.0,0.13092156]
[1757487802441,0.02405,111890.0,111880.0,0.22592312]
[1757487802646,0.02505,111890.0,111880.0,0.22592312]
[1757487802846,0.02505,111890.0,111880.0,0.94240156]
[1757487804753,0.02505,111890.0,111880.0,0.13092156]
[1757487804950,0.02505,111890.0,111880.0,0.58072156]
[1757487805753,0.03849,111890.0,111880.0,0.58072156]
[1757487806055,0.02505,111890.0,111880.0,0.58072156]
[1757487807955,0.02505,111890.0,111880.0,0.67572312]
[1757487808658,0.002,111890.0,111880.0,0.67572312]
[1757487809562,0.02505,111890.0,111880.0,0.67572312]
[1757487810362,0.002,111890.0,111880.0,0.67572312]
[1757487812661,0.02505,111890.0,111880.0,0.67572312]
[1757487815159,0.02505,111890.0,111880.0,1.03728312]
[1757487816558,0.02505,111890.0,111880.0,0.11693156]
[1757487816559,0.13349156,111890.0,111880.0,0.11693156]
[1757487817859,0.38349156,111890.0,111880.0,0.02193]
[1757487818059,0.03649,111880.0,111870.0,0.02193]
[1757487818262,0.22649312,111880.0,111870.0,0.02193]
[1757487819156,0.03649,111870.0,111860.0,0.10364703]
[1757487819355,0.03649,111870.0,111860.0,0.02193]
[1757487819356,0.13149156,111870.0,111860.0,0.02193]
[1757487820464,0.13149156,111870.0,111860.0,0.02393]
[1757487820865,0.13149156,111870.0,111860.0,0.0940964]
[1757487821065,0.03649,111870.0,111860.0,0.18909796]
[1757487821861,0.03649,111870.0,111860.0,0.20267796]
[1757487822265,0.03649,111870.0,111860.0,0.1076764]
[1757487822564,0.13149156,111870.0,111860.0,0.20267796]
[1757487822961,0.03649,111870.0,111860.0,0.20267796]
[1757487823160,0.03649,111870.0,111860.0,0.21171056]
[1757487823364,0.02305,111870.0,111860.0,0.21171056]
[1757487824163,0.03581,111870.0,111860.0,0.21171056]
[1757487824454,0.03581,111870.0,111860.0,0.21271056]
[1757487827367,0.02305,111870.0,111860.0,0.21271056]
[1757487831475,0.02305,111870.0,111860.0,0.30771212]
[1757487831767,0.0001,111880.0,111860.0,0.30771212]
[1757487831961,0.02291,111880.0,111870.0,0.13056156]
[1757487832161,0.02281,111880.0,111870.0,0.13056156]
[1757487832767,0.11781156,111880.0,111870.0,0.13056156]
[1757487833068,0.03557,111880.0,111870.0,0.13056156]
[1757487833566,0.13057156,111880.0,111870.0,0.13056156]
[1757487837668,0.13057156,111880.0,111870.0,0.11698156]
[1757487837871,0.03557,111870.0,111860.0,0.19718056]
[1757487838073,0.13057156,111870.0,111860.0,0.19718056]
[1757487838273,0.02281,111870.0,111860.0,0.21076056]
[1757487838873,0.02281,111870.0,111860.0,0.20976056]
[1757487839365,0.02281,111870.0,111860.0,0.30476212]
[1757487839766,0.02281,111870.0,111860.0,0.30676212]
[1757487839967,0.02291,111880.0,111870.0,0.03556]
[1757487840170,0.02281,111880.0,111870.0,0.13056156]
[1757487840475,0.10864156,111890.0,111880.0,0.03556]
[1757487840476,0.02301,111890.0,111880.0,0.03556]
[1757487840770,0.02281,111890.0,111880.0,0.22556312]
[1757487842174,0.10864156,111900.0,111890.0,0.03556]
[1757487842175,0.02301,111900.0,111890.0,0.03556]
[1757487842374,0.02281,111900.0,111890.0,0.13056156]
[1757487843677,0.02481,111900.0,111890.0,0.13056156]
[1757487844480,0.03757,111900.0,111890.0,0.03556]
[1757487844683,0.03757,111900.0,111890.0,0.13056156]
[1757487845673,0.13257156,111900.0,111890.0,0.02198]
[1757487846082,0.03557,111890.0,111880.0,0.02198]
[1757487846378,0.13057156,111890.0,111880.0,0.02198]
[1757487847682,0.13157156,111890.0,111880.0,0.02198]
[1757487847878,0.13257156,111890.0,111880.0,0.02198]
[1757487848374,0.18000207,111890.0,111880.0,0.16441207]
[1757487852275,0.43000207,111890.0,111880.0,0.02198]
[1757487852466,0.03564,111880.0,111870.0,0.0231]
[1757487852672,0.17807207,111880.0,111870.0,0.0231]
[1757487852873,0.17807207,111880.0,111870.0,0.16553207]
[1757487853067,0.16437207,111880.0,111870.0,0.16553207]
[1757487853378,0.02194,111880.0,111870.0,0.17906207]
[1757487853778,0.02414,111890.0,111880.0,0.03663]
[1757487853978,0.16537207,111890.0,111880.0,0.32149414]
[1757487854479,0.16437207,111890.0,111880.0,0.32149414]
[1757487855271,0.16537207,111890.0,111880.0,0.32149414]
[1757487858376,0.16637207,111890.0,111880.0,0.32149414]
[1757487860183,0.16637207,111890.0,111880.0,0.17906207]
[1757487860382,0.16637207,111890.0,111880.0,0.03663]
[1757487860583,0.16637207,111890.0,111880.0,0.17906207]
[1757487861576,0.18007207,111890.0,111880.0,0.0231]
[1757487862082,0.18007207,111890.0,111880.0,0.16553207]
[1757487864888,0.18007207,111890.0,111880.0,0.0231]
[1757487865189,0.03564,111880.0,111870.0,0.16553207]
[1757487865386,0.17807207,111880.0,111870.0,0.16553207]
[1757487865888,0.17807207,111880.0,111870.0,0.0231]
[1757487866094,0.32050414,111880.0,111870.0,0.0231]
[1757487867182,0.32050414,111880.0,111870.0,0.16553207]
[1757487867383,0.17807207,111880.0,111870.0,0.16553207]
[1757487867788,0.32050414,111880.0,111870.0,0.16553207]
[1757487869792,0.17807207,111880.0,111870.0,0.16553207]
[1757487872497,0.32050414,111880.0,111870.0,0.16553207]
[1757487872700,0.17807207,111880.0,111870.0,0.17906207]
[1757487875299,0.17807207,111880.0,111870.0,0.16553207]
[1757487882304,0.17807207,111880.0,111870.0,0.17900207]
[1757487890515,0.17807207,111880.0,111870.0,0.03657]
[1757487890714,0.17807207,111880.0,111870.0,0.17900207]
[1757487891121,0.17807207,111880.0,111870.0,0.16553207]
[1757487891316,0.32050414,111880.0,111870.0,0.16553207]
[1757487891816,0.17807207,111880.0,111870.0,0.16553207]
[1757487895522,0.17807207,111880.0,111870.0,0.17900207]
[1757487898123,0.17807207,111880.0,111870.0,0.16553207]
[1757487900118,0.03564,111880.0,111870.0,0.16553207]
[1757487900317,0.02194,111880.0,111870.0,0.17900207]
[1757487900516,0.16437207,111880.0,111870.0,0.17900207]
[1757487903825,0.02194,111880.0,111870.0,0.17900207]
[1757487904024,0.16391207,111890.0,111880.0,0.03563]
[1757487904218,0.18620021,111890.0,111880.0,0.17806207]
[1757487904618,0.19968021,111890.0,111880.0,0.17806207]
[1757487905219,0.02128,111890.0,111880.0,0.32049414]
[1757487905425,0.02228,111890.0,111880.0,0.32049414]
[1757487905623,0.02328,111890.0,111880.0,0.32049414]
[1757487908425,0.02328,111890.0,111880.0,0.13056842]
[1757487915132,0.02328,111890.0,111880.0,0.22550684]
[1757487915330,0.002,111890.0,111880.0,0.22550684]
[1757487919040,0.002,111890.0,111880.0,1.03646684]
[1757487921344,0.002,111890.0,111880.0,0.22550684]
[1757487921547,0.002,111890.0,111880.0,1.03646684]
[1757487923343,0.002,111890.0,111880.0,0.22550684]
[1757487923543,0.002,111890.0,111880.0,1.03642684]
[1757487925742,0.002,111890.0,111880.0,0.22550684]
[1757487925947,0.002,111890.0,111880.0,1.03642684]
[1757487932349,0.002,111890.0,111880.0,0.22550684]
[1757487932549,0.002,111890.0,111880.0,1.03634684]
[1757487934452,0.002,111890.0,111880.0,0.22550684]
[1757487934752,0.002,111890.0,111880.0,1.03634684]
[1757487936353,0.002,111890.0,111880.0,0.22550684]
[1757487936555,0.002,111890.0,111880.0,1.03634684]
[1757487937555,0.002,111890.0,111880.0,0.22550684]
[1757487937758,0.002,111890.0,111880.0,1.03630684]
[1757487938358,0.02343,111890.0,111880.0,0.22550684]
[1757487938551,0.02343,111890.0,111880.0,1.03630684]
[1757487938956,0.02343,111890.0,111880.0,0.22550684]
[1757487939153,0.38107842,111890.0,111880.0,0.83296]
[1757487939355,0.13107842,111890.0,111880.0,0.83296]
[1757487940561,0.13107842,111890.0,111880.0,0.92789842]
[1757487945262,0.13107842,111890.0,111880.0,0.11709842]
[1757487945463,0.13107842,111890.0,111880.0,0.81621842]
[1757487947060,0.13107842,111890.0,111880.0,0.83005842]
[1757487947961,0.03614,111890.0,111880.0,0.83005842]
[1757487948557,0.02343,111890.0,111880.0,0.83005842]
[1757487948764,0.02343,111890.0,111880.0,0.92499684]
[1757487952460,0.002,111890.0,111880.0,0.92499684]
[1757487953558,0.02486,111890.0,111880.0,0.92499684]
[1757487958464,0.02486,111890.0,111880.0,0.73512]
[1757487958656,0.02486,111890.0,111880.0,0.92499684]
[1757487958856,0.002,111890.0,111880.0,0.92499684]
[1757487962362,0.002,111890.0,111880.0,1.01437234]
[1757487962667,0.002,111890.0,111880.0,1.09499131]
[1757487963267,0.002,111890.0,111880.0,1.01437234]
[1757487964067,0.002,111890.0,111880.0,0.92499684]
[1757487964974,0.002,111890.0,111880.0,0.22587684]
[1757487965270,0.002,111890.0,111880.0,1.03643684]
[1757487968470,0.002,111890.0,111880.0,1.13133518]
[1757487968765,0.002,111890.0,111880.0,1.21195415]
[1757487969372,0.002,111890.0,111880.0,1.13133518]
[1757487969672,0.002,111890.0,111880.0,1.21195415]
[1757487970259,0.002,111890.0,111880.0,1.22071068]
[1757487973176,0.002,111890.0,111880.0,1.30132965]
[1757487975578,0.002,111890.0,111880.0,1.44371724]
[1757487976673,0.0002,111900.0,111890.0,0.03578]
[1757487976974,0.0002,111910.0,111900.0,0.03578]
[1757487977279,0.16365759,111920.0,111910.0,0.03578]
[1757487977469,0.18591557,111920.0,111910.0,0.17816759]
[1757487978275,0.16345759,111920.0,111910.0,0.17816759]
[1757487978465,0.16345759,111920.0,111910.0,0.18727027]
[1757487979178,0.02107,111920.0,111910.0,0.18727027]
[1757487980172,0.16345759,111920.0,111910.0,0.18727027]
[1757487980373,0.02107,111920.0,111910.0,0.18727027]
[1757487980574,0.02107,111920.0,111910.0,0.99763027]
[1757487981078,0.02107,111920.0,111910.0,1.01536923]
[1757487981377,0.16345759,111920.0,111910.0,1.01536923]
[1757487981578,0.16545759,111920.0,111910.0,1.01536923]
[1757487981979,0.02307,111920.0,111910.0,0.20500923]
[1757487982283,0.16545759,111920.0,111910.0,1.01536923]
[1757487982481,0.16945759,111920.0,111910.0,0.87298164]
[1757487982781,0.16945759,111920.0,111910.0,1.01536923]
[1757487983380,0.16945759,111920.0,111910.0,1.01532923]
[1757487986585,0.16945759,111920.0,111910.0,0.06262164]
[1757487986786,0.16945759,111920.0,111910.0,1.01528923]
[1757487988187,0.16945759,111920.0,111910.0,0.20500923]
[1757487988384,0.16945759,111920.0,111910.0,1.01528923]
[1757487988587,0.31184518,111920.0,111910.0,1.01528923]
[1757487988784,0.31184518,111920.0,111910.0,0.20500923]
[1757487988982,0.32486518,111920.0,111910.0,0.85640923]
[1757487989887,0.32486518,111920.0,111910.0,0.20500923]
[1757487990190,0.32486518,111920.0,111910.0,1.01524923]
[1757487990488,0.31184518,111920.0,111910.0,1.01524923]
[1757487990889,0.02707,111920.0,111910.0,1.01524923]
[1757487991081,0.16945759,111920.0,111910.0,1.01524923]
[1757487992280,0.31184518,111920.0,111910.0,1.01524923]
[1757487993284,0.31184518,111920.0,111910.0,0.06262164]
[1757487993591,0.32486518,111920.0,111910.0,0.70718923]
[1757487995290,0.04009,111920.0,111910.0,0.70718923]
[1757487995594,0.32486518,111920.0,111910.0,0.03965896]
[1757487998593,0.34733359,111920.0,111910.0,0.03965896]
[1757487998995,0.73972118,111920.0,111910.0,0.01773896]
[1757487999290,0.73972118,111920.0,111900.0,0.07307283]
[1757487999594,0.03409,111890.0,111880.0,0.17814759]
[1757487999788,0.17647759,111890.0,111880.0,0.98826759]
[1757488000093,0.16345759,111890.0,111880.0,0.98826759]
[1757488002094,0.16345759,111890.0,111880.0,0.99727148]
[1757488004189,0.16345759,111890.0,111880.0,1.06903405]
[1757488005699,0.16345759,111890.0,111880.0,0.25891405]
[1757488005901,0.17667759,111890.0,111880.0,1.06907405]
[1757488010298,0.17667759,111890.0,111880.0,0.25891405]
[1757488010499,0.17667759,111890.0,111880.0,1.06903405]
[1757488014405,0.14238759,111890.0,111880.0,1.21142164]
[1757488014606,0.16399759,111900.0,111890.0,0.03576]
[1757488014800,0.16379759,111900.0,111890.0,0.17814759]
[1757488015814,0.16479759,111900.0,111890.0,0.17814759]
[1757488017113,0.16679759,111900.0,111890.0,0.17814759]
[1757488019317,0.30918518,111900.0,111890.0,0.17814759]
[1757488019516,0.32240518,111900.0,111890.0,0.16450759]
[1757488020513,0.18001759,111900.0,111890.0,0.16450759]
[1757488020719,0.32240518,111900.0,111890.0,0.16450759]
[1757488020917,0.57240518,111900.0,111890.0,0.02212]
[1757488023316,0.57240518,111900.0,111880.0,0.08076646]
[1757488023618,0.31940518,111890.0,111880.0,0.07176257]
[1757488023924,0.03463,111880.0,111870.0,0.18248459]
[1757488024223,0.03463,111880.0,111870.0,0.16450759]
[1757488024224,0.17701759,111880.0,111870.0,0.16450759]
[1757488026221,0.17701759,111880.0,111870.0,0.16550759]
[1757488027024,0.17701759,111880.0,111870.0,0.17533201]
[1757488027317,0.17701759,111880.0,111870.0,0.24782309]
[1757488027518,0.31940518,111880.0,111870.0,0.24782309]
[1757488027716,0.31940518,111880.0,111870.0,0.1054355]
[1757488028021,0.31940518,111880.0,111870.0,0.002]
[1757488028022,0.59188992,111880.0,111870.0,0.002]
[1757488028925,0.5918838,111880.0,111870.0,0.002]
[1757488029421,0.56940518,111880.0,111870.0,0.002]
[1757488030424,0.47463412,111880.0,111870.0,0.002]
[1757488031022,0.49711335,111880.0,111870.0,0.002]
[1757488037024,0.49711335,111880.0,111870.0,0.02347]
[1757488037225,0.49711335,111880.0,111870.0,0.002]
[1757488045036,1.30731335,111880.0,111870.0,0.002]
[1757488045637,1.28483412,111880.0,111870.0,0.002]
[1757488045840,1.30733275,111880.0,111870.0,0.002]
[1757488046232,0.49713275,111880.0,111870.0,0.002]
[1757488046437,1.30733275,111880.0,111870.0,0.02347]
[1757488046839,0.49713275,111880.0,111870.0,0.02347]
[1757488047135,1.30733275,111880.0,111870.0,0.02347]
[1757488047330,0.30712863,111880.0,111870.0,0.02347]
[1757488047536,0.24713275,111880.0,111870.0,0.02347]
[1757488050040,0.15213069,111880.0,111870.0,0.02347]
[1757488050541,0.24713275,111880.0,111870.0,0.02347]
[1757488050742,0.05712863,111880.0,111870.0,0.36847206]
[1757488050935,0.15213069,111880.0,111870.0,0.38184206]
[1757488051136,0.15213069,111880.0,111870.0,0.27347]
[1757488055740,0.15213069,111880.0,111870.0,0.002]
[1757488055741,0.24713275,111880.0,111870.0,0.002]
[1757488056743,0.24713275,111880.0,111870.0,0.02347]
[1757488059936,0.15213069,111880.0,111870.0,0.02347]
[1757488062448,0.05712863,111880.0,111870.0,0.02347]
[1757488062749,0.03463,111880.0,111870.0,0.38223206]
[1757488063142,0.12963206,111880.0,111870.0,0.38223206]
[1757488065641,0.12963206,111880.0,111870.0,0.002]
[1757488065642,0.22463412,111880.0,111870.0,0.002]
[1757488065847,1.30907353,111880.0,111870.0,0.002]
[1757488069052,1.40407559,111880.0,111870.0,0.002]
[1757488071239,1.30907353,111880.0,111870.0,0.002]
[1757488072550,1.40407559,111880.0,111870.0,0.002]
[1757488072950,1.05879353,111880.0,111870.0,0.0244]
[1757488073453,0.24719353,111880.0,111870.0,0.0244]
[1757488073950,0.90691353,111880.0,111870.0,0.0244]
[1757488077051,0.24719353,111880.0,111870.0,0.0244]
[1757488078348,0.24719353,111880.0,111870.0,0.002]
[1757488079559,0.24719353,111880.0,111870.0,0.0244]
[1757488080956,0.34219559,111880.0,111870.0,0.002]
[1757488081456,0.24719353,111880.0,111870.0,0.002]
[1757488089361,0.24719353,111880.0,111870.0,0.0244]
[1757488089662,0.24719353,111880.0,111870.0,0.002]
[1757488090461,0.34219221,111880.0,111870.0,0.002]
[1757488093064,1.15363221,111880.0,111870.0,0.002]
[1757488093564,0.34219221,111880.0,111870.0,0.002]
[1757488093754,1.15351221,111880.0,111870.0,0.002]
[1757488098365,1.15327221,111880.0,111870.0,0.002]
[1757488099167,1.15327221,111880.0,111870.0,0.02483]
[1757488099767,1.15323221,111880.0,111870.0,0.02483]
[1757488101269,0.34219221,111880.0,111870.0,0.02483]
[1757488101463,0.05718941,111880.0,111870.0,0.4173314]
[1757488101770,0.34219221,111880.0,111870.0,0.4173314]
[1757488101968,0.34219221,111880.0,111870.0,0.27483]
[1757488102270,0.34219221,111880.0,111870.0,0.4173314]
[1757488102970,0.34219221,111880.0,111870.0,0.27483]
[1757488105966,0.05718941,111880.0,111870.0,0.4173314]
[1757488106270,0.34219221,111880.0,111870.0,0.4304714]
[1757488107472,0.34219221,111880.0,111870.0,0.27483]
[1757488108374,0.05718941,111880.0,111870.0,0.27483]
[1757488108573,0.34219221,111880.0,111870.0,0.27483]
[1757488119277,0.34219221,111880.0,111870.0,0.02483]
[1757488121581,0.34219221,111880.0,111870.0,0.002]
[1757488121779,0.34219221,111880.0,111870.0,0.02515]
[1757488123378,0.34219221,111880.0,111870.0,0.002]
[1757488127192,0.34219221,111880.0,111870.0,0.02515]
[1757488136103,0.05718941,111880.0,111870.0,0.02515]
[1757488136401,0.34219221,111880.0,111870.0,0.02515]
[1757488138199,0.05718941,111880.0,111870.0,0.1676514]
[1757488138402,0.00033417,111890.0,111870.0,0.6628762]
[1757488138590,0.18871809,111890.0,111880.0,0.3214928]
[1757488138904,0.18851809,111890.0,111880.0,0.1789914]
[1757488139394,0.16589557,111890.0,111880.0,0.1789914]
[1757488140395,0.00013417,111890.0,111880.0,0.5714928]
[1757488140595,0.02339417,111890.0,111880.0,0.28649]
[1757488140802,0.02339417,111890.0,111880.0,0.5714928]
[1757488141001,0.16589557,111890.0,111880.0,0.5714928]
[1757488141303,0.00013417,111890.0,111880.0,0.5714928]
[1757488145401,0.00013417,111890.0,111880.0,0.6608682]
[1757488150002,0.00013417,111890.0,111880.0,0.4108682]
[1757488152306,0.00013417,111890.0,111880.0,1.12609776]
[1757488153508,0.0002,111900.0,111890.0,0.1241575]
[1757488153701,0.0002,111910.0,111900.0,0.03479]
[1757488154006,0.02253,111920.0,111910.0,0.03479]
[1757488154202,0.02233,111920.0,111910.0,0.13879104]
[1757488154404,0.02233,111920.0,111910.0,0.94927104]
[1757488155610,0.02233,111920.0,111910.0,1.02082137]
[1757488155811,0.02333,111920.0,111910.0,1.02082137]
[1757488156111,0.02333,111920.0,111910.0,0.94927104]
[1757488156615,0.02533,111920.0,111910.0,0.94927104]
[1757488158011,0.02533,111920.0,111910.0,0.94907104]
[1757488159910,0.02533,111920.0,111910.0,0.94903104]
[1757488160511,0.02533,111920.0,111910.0,0.94895104]
[1757488161109,0.02533,111920.0,111910.0,1.02173081]
[1757488161513,0.02533,111920.0,111910.0,0.21157081]
[1757488161711,0.02533,111920.0,111910.0,1.02169081]
[1757488162806,0.02533,111920.0,111910.0,0.21157081]
[1757488163211,0.13375618,111920.0,111910.0,0.87141081]
[1757488163704,0.13375618,111920.0,111910.0,1.02169081]
[1757488166612,0.13375618,111920.0,111910.0,0.21157081]
[1757488166810,0.28884,111920.0,111910.0,0.10391463]
[1757488167004,0.47867236,111920.0,111910.0,0.10391463]
[1757488167210,0.38375618,111920.0,111910.0,0.10391463]
[1757488170408,0.38375618,111920.0,111910.0,0.11665463]
[1757488170712,0.38375618,111920.0,111910.0,0.21157081]
[1757488171108,0.02533,111920.0,111910.0,0.21157081]
[1757488179318,0.003,111920.0,111910.0,0.21157081]
[1757488179517,0.003,111920.0,111910.0,0.39583849]
[1757488179711,0.003,111920.0,111910.0,0.64583849]
[1757488179913,0.0002,111930.0,111920.0,0.22462236]
[1757488180118,0.0002,111940.0,111930.0,0.03479]
[1757488180419,0.02233,111940.0,111930.0,0.12970618]
[1757488180617,0.02233,111940.0,111930.0,0.37970618]
[1757488181419,0.10864618,111950.0,111930.0,0.37970618]
[1757488181621,0.02203,111940.0,111930.0,0.12970618]
[1757488184417,0.12967618,111940.0,111930.0,0.02205]
[1757488187824,0.13067618,111940.0,111930.0,0.02205]
[1757488188424,0.03576,111940.0,111930.0,0.02205]
[1757488188725,0.13067618,111940.0,111930.0,0.02205]
[1757488190326,0.13067618,111940.0,111930.0,0.11696618]
[1757488194227,0.13067618,111940.0,111930.0,0.02205]
[1757488194427,0.13067618,111940.0,111930.0,0.11696618]
[1757488195423,0.13067618,111940.0,111930.0,0.02205]
[1757488195728,0.13067618,111940.0,111930.0,0.11696618]
[1757488197332,0.11794618,111940.0,111930.0,0.12993618]
[1757488197629,0.02303,111940.0,111930.0,0.12993618]
[1757488199125,0.02203,111940.0,111930.0,0.13093618]
[1757488205736,0.13067618,111950.0,111940.0,0.03571]
[1757488206035,0.15300537,111950.0,111940.0,0.03571]
[1757488206635,0.15300537,111950.0,111940.0,0.02274]
[1757488207232,0.40400537,111950.0,111940.0,0.02274]
[1757488207535,0.03476,111940.0,111930.0,0.02274]
[1757488207734,0.12967618,111940.0,111930.0,0.02274]
[1757488210130,0.12967618,111940.0,111930.0,0.02374]
[1757488212428,0.03476,111940.0,111930.0,0.17877885]
[1757488212633,0.17706885,111940.0,111930.0,0.17877885]
[1757488213334,0.16533885,111940.0,111930.0,0.17777885]
[1757488213936,0.16433885,111940.0,111930.0,0.17877885]
[1757488218236,0.02203,111940.0,111930.0,0.17877885]
[1757488220144,0.16433885,111940.0,111930.0,0.17877885]
[1757488220347,0.02203,111940.0,111930.0,0.03647]
[1757488220540,0.02203,111940.0,111930.0,0.17877885]
[1757488222143,0.16433885,111940.0,111930.0,0.17877885]
[1757488222846,0.02203,111940.0,111930.0,0.17877885]
[1757488223044,0.16433885,111940.0,111930.0,0.17877885]
[1757488223545,0.17797885,111940.0,111930.0,0.16604885]
[1757488224247,0.20048932,111940.0,111930.0,0.16604885]
[1757488226043,0.20048932,111940.0,111930.0,0.16504885]
[1757488226340,0.20148932,111940.0,111930.0,0.16504885]
[1757488228644,0.20148932,111940.0,111930.0,0.97476885]
[1757488229551,0.17897885,111940.0,111930.0,0.97476885]
[1757488233152,0.03667,111940.0,111930.0,0.97476885]
[1757488233453,0.17897885,111940.0,111930.0,0.97476885]
[1757488233653,0.17897885,111940.0,111930.0,0.16504885]
[1757488233848,0.17897885,111940.0,111930.0,0.97476885]
[1757488234951,0.5712877,111940.0,111930.0,0.02274]
[1757488235149,0.59379992,111940.0,111930.0,0.02274]
[1757488236645,0.45149107,111940.0,111930.0,0.16504885]
[1757488237857,0.42897885,111940.0,111930.0,0.16504885]
[1757488238555,0.03667,111940.0,111930.0,0.16504885]
[1757488238753,0.02303,111940.0,111930.0,0.17777885]
[1757488244759,0.001,111940.0,111930.0,0.3200877]
[1757488245160,0.02268,111940.0,111930.0,0.17777885]
[1757488246264,0.02168,111940.0,111930.0,0.17777885]
[1757488250069,0.02168,111940.0,111930.0,0.03547]
[1757488250268,0.02168,111940.0,111930.0,0.17777885]
[1757488251074,0.02168,111940.0,111930.0,0.03547]
[1757488251260,0.02168,111940.0,111930.0,0.17777885]
[1757488251765,0.14250885,111950.0,111940.0,0.01326]
[1757488251969,0.18649559,111950.0,111940.0,0.17868885]
[1757488252570,0.19983559,111950.0,111940.0,0.17868885]
[1757488252868,0.20083559,111950.0,111940.0,0.17868885]
[1757488253771,0.001,111950.0,111940.0,1.1305977]
[1757488254977,0.15601885,111960.0,111940.0,1.1305977]
[1757488255171,0.17769885,111960.0,111950.0,0.17868885]
[1757488255372,0.17749885,111960.0,111950.0,0.17868885]
[1757488256373,0.17749885,111960.0,111950.0,0.18773626]
[1757488256670,0.17749885,111960.0,111950.0,0.25955399]
[1757488257072,0.03619,111960.0,111950.0,0.25955399]
[1757488257273,0.17849885,111960.0,111950.0,0.11724514]
[1757488257472,0.17849885,111960.0,111950.0,0.25955399]
[1757488258074,0.03619,111960.0,111950.0,0.25955399]
[1757488258272,0.17849885,111960.0,111950.0,0.25955399]
[1757488259466,0.02268,111960.0,111950.0,0.25955399]
[1757488259673,0.16498885,111960.0,111950.0,0.25955399]
[1757488260175,0.16498885,111960.0,111950.0,0.17868885]
[1757488264077,0.16498885,111960.0,111950.0,0.03638]
[1757488264278,0.16498885,111960.0,111950.0,0.17868885]
[1757488264977,0.02268,111960.0,111950.0,0.17868885]
[1757488265176,0.16498885,111960.0,111950.0,0.18777635]
[1757488265479,0.02268,111960.0,111950.0,0.18777635]
[1757488265977,0.02268,111960.0,111950.0,0.25956547]
[1757488272484,0.001,111960.0,111950.0,0.21207567]
[1757488272781,0.02376,111960.0,111950.0,0.21207567]
[1757488275583,0.001,111960.0,111950.0,0.21207567]
[1757488275785,0.001,111960.0,111950.0,0.30689472]
[1757488275995,0.001,111960.0,111950.0,0.46207567]
[1757488276182,0.001,111960.0,111950.0,0.36725662]
[1757488276484,0.001,111960.0,111950.0,0.46207567]
[1757488276980,0.001,111960.0,111950.0,1.27139567]
[1757488281390,0.001,111960.0,111950.0,1.02139567]
[1757488281791,0.02376,111960.0,111950.0,0.21207567]
[1757488281985,0.02376,111960.0,111950.0,1.02135567]
[1757488283094,0.02376,111960.0,111950.0,0.92653662]
[1757488283391,0.02376,111960.0,111950.0,1.02135567]
[1757488285296,0.001,111960.0,111950.0,1.02135567]
[1757488290095,0.02376,111960.0,111950.0,1.02123567]
[1757488293700,0.001,111960.0,111950.0,1.02123567]